Cogmind - Beta 16.1 @@@ ROGUE MODE // 2026.02.12 @ 02:58:27 Player: AngelSpirit Result: Destroyed by OX-TSU(R) with Subdweller Shrapnel Launcher Performance ------------- Evolutions (0) 0 Regions Visited (2) 400 Robots Destroyed (20) 100 Value Destroyed (502) 502 Prototype IDs (1) 20 Alien Tech Used (0) 0 Bonus (0) 0 TOTAL SCORE: 1022 Bonus ------- None Cogmind --------- Core Integrity 0/250 Matter 296/300 Energy 245/250 System Corruption 0% Temperature Cool (0) Movement Rolling (117) Ox1 Location -10/Subcaves Parts ------- > --- POWER (1) -------- Ion Engine > --- PROPULSION (2) --- Compact Wheel Subdweller Monowheel > --- UTILITY (2) ------ High-capacity Storage Unit Seismic Detector > --- WEAPON (2) ------- Advanced Beam Cannon Subdweller Machine Gun > --- INVENTORY (20) --- Subdweller Power Source Wheel Wheel Wheel Compact Wheel Subdweller Monowheel Huge Storage Unit Subdweller Laser Subdweller Laser Advanced Beam Cannon Advanced Beam Cannon Mini Grenade Launcher Mini Grenade Launcher Subdweller Shrapnel Launcher Subdweller Shrapnel Launcher Mining Laser Multitool Peak State ------------ > --- POWER ------------ Ion Engine > --- PROPULSION ------- Compact Wheel Subdweller Monowheel > --- UTILITY ---------- High-capacity Storage Unit Seismic Detector > --- WEAPON ----------- Advanced Beam Cannon Advanced Beam Cannon > --- INVENTORY -------- Subdweller Power Source Wheel Wheel Wheel Compact Wheel Subdweller Monowheel Huge Storage Unit Subdweller Laser Advanced Beam Cannon Mini Grenade Launcher Mini Grenade Launcher Subdweller Shrapnel Launcher Subdweller Shrapnel Launcher Mining Laser [Rating: 14] Favorites ----------- Power Ion Engine Engine Ion Engine Propulsion Compact Wheel Wheel Compact Wheel Utility Seismic Detector Device Seismic Detector Storage Small Storage Unit Protection Backup Plating I Weapon Advanced Beam Cannon Energy Cannon Advanced Beam Cannon Ballistic Gun Light Assault Rifle Ballistic Cannon Light Cannon Launcher Mini Grenade Launcher Build | -11 -10 -10 ------- Run | Yrd Mat Sub Slots Evolved . | . . . Power . | . . . Propulsion . | . . . Utility . | . . . Weapon . | . . . Parts Attached 18 | 7 6 5 Power 1 | 1 . . Engine 1 | 1 . . Core . | . . . Reactor . | . . . Propulsion 3 | 2 . 1 Treads . | . . . Leg . | . . . Wheel 3 | 2 . 1 Hover . | . . . Flight . | . . . Utility 4 | 2 2 . Device 1 | 1 . . Storage 2 | 1 1 . Processor . | . . . Hackware . | . . . Protection 1 | . 1 . Artifact . | . . . Weapon 10 | 2 4 4 Energy Gun . | . . . Energy Cannon 3 | . 2 1 Ballistic Gun 4 | 2 . 2 Ballistic Cannon 1 | . 1 . Launcher 2 | . 1 1 Special Weapon . | . . . Impact Weapon . | . . . Slashing Weapon . | . . . Piercing Weapon . | . . . Special Melee Weapon . | . . . Unidentified Prototypes 1 | . 1 . Parts Lost 2 | . . 2 Power . | . . . Propulsion . | . . . Utility 1 | . . 1 Weapon 1 | . . 1 Highest Loss Streak 2 | . . 2 To Critical Strikes . | . . . Average Backups 9 | . 6 14 Power . | . . . Propulsion 3 | . 2 4 Utility 1 | . 1 1 Weapon 4 | . 3 7 Tool/Special . | . . . Unused Backups 13 | . 1 12 Power 1 | . . 1 Propulsion 4 | . . 4 Utility 1 | . . 1 Weapon 6 | . 1 5 Tool/Special 1 | . . 1 Average Slot Usage (%) 99 | . 99 98 Engine 14 | . 14 14 Wheel 28 | . 28 28 Device 12 | . 13 12 Storage 14 | . 14 14 Energy Cannon 22 | . 21 23 Ballistic Gun 2 | . 1 3 Ballistic Cannon 3 | . 4 1 Peak Build Rating 14 | 7 12 14 Average Rating 11 | 5 11 13 On Entrance 5 | . 7 10 Avg Prop Armor Cover (%) . | . . . Naked Turns . | . . . Heaviest Build 54 | 13 53 54 Greatest Support 36 | 26 26 36 Greatest Overweight (x) 2 | . 2 2 Average Overweight (x) . | . . 1 Largest Inventory Capacity 20 | 8 20 20 Average Capacity 13 | 7 9 20 Most Carried 18 | 1 10 18 Average Carried 9 | . 7 14 Final Capacity 20 | 8 20 20 Final Carried 17 | 1 10 17 Class Distribution -------------------- 100% | Mutant Dominant Class ---------------- Mutant | -10/Materials Mutant | -10/Subcaves Resources | -11 -10 -10 ----------- Run | Yrd Mat Sub Matter Collected 642 | 290 196 156 Remotely . | . . . Salvage Created 610 | 42 315 253 Parts 45 | 6 17 22 Haulers Intercepted 2 | . 2 . Recyclers Shooed 1 | 1 . . Parts Field Recycled . | . . . Retrieved Matter . | . . . Parts Self-Destructed 10 | . . 10 Prevented . | . . . Parts Restored . | . . . Kills | -11 -10 -10 ------- Run | Yrd Mat Sub Combat Hostiles Destroyed 13 | . 6 7 Guns 1 | . . 1 Cannons 9 | . 4 5 AOE 3 | . 2 1 Classes Destroyed 8 | 1 5 2 Builder 1 | . 1 . Tunneler 2 | 2 . . Hauler 2 | . 2 . Watcher 2 | . 2 . Swarmer 3 | . 2 1 Grunt 4 | . 4 . Sentry 1 | . . 1 Subdweller 5 | . . 5 Best Kill Streak 4 | 2 4 2 Combat Bots Only 3 | . 3 2 Max Kills in Single Turn 2 | 1 2 1 Gunslinging . | . . . Exploded 2 | . 2 1 Melee . | . . . Uniques/NPCs Destroyed . | . . . Combat | -11 -10 -10 -------- Run | Yrd Mat Sub Hostile Shots Fired 48 | . 14 34 Missed 17 | . 5 12 Hits 31 | . 9 22 Projectile 31 | . 9 22 AOE 5 | . . 5 Critical Strikes 1 | . 1 . Damage Taken 845 | . 159 686 Core 282 | . 40 242 Absorbed by Shields . | . . . Core Remaining (%) 100 | 100 . . Volleys Fired 75 | 10 29 36 Largest 2 | 2 2 2 Hottest 136 | 40 136 136 Shots Fired 146 | 20 57 69 Gun 34 | 20 . 14 Cannon 109 | . 56 53 Launcher 3 | . 1 2 Special . | . . . Kinetic 56 | 20 15 21 Thermal 87 | . 41 46 Explosive 3 | . 1 2 Electromagnetic . | . . . Robot Hit Streak 9 | 9 6 8 Robot Miss Streak 3 | 1 3 1 Penetration Max . | . . . Secondary Targets . | . . . Shots Hit Robots 80 | 16 29 35 Core Hits 29 | 6 13 10 Critical Kills . | . . . Critical Parts Destroyed . | . . . Critical Strikes . | . . . Melee Attacks . | . . . Impact . | . . . Slashing . | . . . Piercing . | . . . Sneak Attacks . | . . . Combat Hostiles . | . . . Follow-up Attacks . | . . . Damage Inflicted 1634 | 122 728 784 Guns 239 | 122 . 117 Cannons 1149 | . 601 548 Explosions 241 | . 122 119 Melee . | . . . Ramming 5 | . 5 . Kinetic 487 | 122 148 217 Thermal 901 | . 453 448 Explosive 241 | . 122 119 Electromagnetic . | . . . Impact . | . . . Slashing . | . . . Piercing . | . . . Highest Corruption . | . . . Average Corruption . | . . . Corruption Purged . | . . . Corruption Blocked . | . . . Overload Shots . | . . . Overflow Damage 37 | . 1 36 Projectiles 1 | . 1 . Explosions 36 | . . 36 Melee . | . . . Knockbacks 5 | . 2 3 Impact . | . . . Kinetic 5 | . 2 3 Secondary . | . . . Self-Inflicted Damage 65 | . 27 38 Shots 2 | . 1 1 Rammed 1 | . 1 . Targets Rammed 1 | . 1 . Kicked . | . . . Crushed . | . . . Highest Temperature 300 | . 300 60 Average Temperature 97 | . 115 18 Received Heat Transfer 108 | . 81 27 Siege Activations . | . . . Martial Activations . | . . . Shielding Activations . | . . . Robots Disrupted . | . . . Combat Hostiles . | . . . Robots Corrupted . | . . . Combat Hostiles . | . . . Parts Fried . | . . . Impact Corruptions . | . . . Robots Melted . | . . . Combat Hostiles . | . . . Parts Melted 1 | . 1 . Heat Transferred 1628 | . 814 814 Parts Sabotaged . | . . . Parts Stolen . | . . . Parts Stripped . | . . . Power Chain Reactions . | . . . Alert | -11 -10 -10 ------- Run | Yrd Mat Sub Maximum Alert Level . | . . . Low Security (%) 100 | 100 100 . Level 1 . | . . . Level 2 . | . . . Level 3 . | . . . Level 4 . | . . . Level 5 . | . . . High Security . | . . . Max Security . | . . . Peak Influence 114 | 5 114 . Initial . | . . . Average 24 | 1 26 . Influence Increases 266 | 10 216 40 Destroy 0b10 Robot/C 160 | . 120 40 Destroy 0b10 Robot/NC 35 | 10 25 . Destroy Leader 28 | . 28 . Successful Hack 3 | . 3 . Disable Machine 15 | . 15 . Destroy Structure 10 | . 10 . Lose Combat Pursuer 15 | . 15 . Influence Decreases 266 | 10 173 83 Entered New Map 22 | . . 22 Time Decay 234 | 10 173 51 Lost Part 10 | . . 10 Squads Dispatched 1 | . 1 . Investigation 1 | . 1 . Extermination . | . . . Reinforcement . | . . . Assault . | . . . Garrison . | . . . Intercept . | . . . Searches Triggered . | . . . Construction Impeded . | . . . Haulers Reinforced . | . . . Active Scanning Responses . | . . . Cargo Convoy Interrupts . | . . . Stealth | -11 -10 -10 --------- Run | Yrd Mat Sub Distress Signals 1 | . 1 . Communications Jammed . | . . . Distress Signals . | . . . Times Spotted 23 | . 13 10 Peak Tracking Total 5 | . 5 3 Tactical Retreats 1 | . 1 . Traps | -11 -10 -10 ------- Run | Yrd Mat Sub Traps Triggered 1 | . 1 . Indirectly . | . . . Trap Hack Attempts . | . . . Triggered . | . . . Disarmed . | . . . Reprogrammed . | . . . Reused 1 | . . 1 Traps Extracted . | . . . Installed 1 | . . 1 Triggered . | . . . Most Traps Carried 1 | . . 1 Machines | -11 -10 -10 ---------- Run | Yrd Mat Sub Machines Disabled 1 | . 1 . Max in Single Turn 1 | . 1 . Machines Repaired . | . . . Machines Dismantled . | . . . Machines Sabotaged . | . . . Overloaded Fab Kills . | . . . Hacking | -11 -10 -10 --------- Run | Yrd Mat Sub Machines Accessed 7 | . 7 . Terminals 6 | . 6 . Fabricators . | . . . Repair Stations 1 | . 1 . Recycling Units . | . . . Scanalyzers . | . . . Garrison Access . | . . . Total Hacks 18 | . 18 . Successful 8 | . 8 . Failed 9 | . 9 . Catastrophic 1 | . 1 . Database Lockouts 1 | . 1 . Manual 9 | . 9 . Terminals 16 | . 16 . Fabricators . | . . . Repair Stations 2 | . 2 . Recycling Units . | . . . Scanalyzers . | . . . Garrison Access . | . . . Terminal Hacks 6 | . 6 . Robot Analysis 3 | . 3 . Locate Traps 2 | . 2 . Zone Layout 1 | . 1 . Fabricator Hacks . | . . . Repair Station Hacks 1 | . 1 . Refit 1 | . 1 . Recycling Unit Hacks . | . . . Scanalyzer . | . . . Garrison Access Hacks . | . . . Unauthorized Hacks 1 | . 1 . Terminals 1 | . 1 . Botnet 1 | . 1 . Fabricators . | . . . Repair Stations . | . . . Recycling Units . | . . . Scanalyzers . | . . . Garrison Access . | . . . Data Cores Recovered . | . . . Used . | . . . Hacking Detections 7 | . 7 . Full Trace Events . | . . . Feedback Events . | . . . Feedback Blocked . | . . . Robot Schematics Acquired . | . . . Robots Built . | . . . Authchips . | . . . Time . | . . . Total Robot Build Rating . | . . . Part Schematics Acquired . | . . . Parts Built . | . . . Authchips . | . . . Time . | . . . Total Part Build Rating . | . . . Part Studies Acquired . | . . . Parts Repaired . | . . . Time . | . . . Parts Recycled . | . . . Recycled Matter . | . . . Retrieved Matter . | . . . Retrieved Components . | . . . Parts Scanalyzed . | . . . Part Schematics Acquired . | . . . Parts Damaged . | . . . Bothacking | -11 -10 -10 ------------ Run | Yrd Mat Sub Used RIF Installer . | . . . Robots Hacked . | . . . Non-combat . | . . . Combat . | . . . Robot Hacks Applied . | . . . Relay Couplers Released . | . . . Fabnet Peak Effective % . | . . . Robots Rewired . | . . . Allies Hacked . | . . . Hacks Repelled . | . . . Allies | -11 -10 -10 -------- Run | Yrd Mat Sub Total Allies . | . . . Largest Group . | . . . Highest-Rated Group . | . . . Highest-Rated Ally . | . . . Total Orders . | . . . Ally Attacks . | . . . Total Damage . | . . . Kills . | . . . Allies Corrupted . | . . . Allies Melted . | . . . Intel | -11 -10 -10 ------- Run | Yrd Mat Sub Active Infowar (turns) 1538 | 9 1022 507 Seismic 1538 | 9 1022 507 Robot Analysis Total 3 | . 3 . Derelict Logs Recovered . | . . . Drone Launches . | . . . Drone Recoveries . | . . . Exploration | -11 -10 -10 ------------- Run | Yrd Mat Sub Turns Passed 1754 | 83 1088 583 Spaces Moved 948 | 51 524 373 Core 1 | 1 . . Treads . | . . . Legs . | . . . Wheels 947 | 50 524 373 Hover . | . . . Flight . | . . . Fastest Speed 50 | 50 90 117 Average Speed 103 | 90 95 117 Slowest Speed 120 | 100 120 120 Overloaded Moves . | . . . Propulsion Burnouts . | . . . Robots Hopped . | . . . Potential Cave-ins . | . . . Cave-ins Triggered . | . . . Exploration Rate (%) 40 | 3 94 23 Regions Visited 2 Branch Regions 1 Pre-discovered Areas . | . . . Known Exits Taken . | . . . Unknown Exits Taken 2 | 1 1 . Scrap Searched 1 | . . 1 Spaces Dug . | . . . Terrain Destroyed 25 | . 9 16 Melee . | . . . Projectile 3 | . . 3 AOE 22 | . 9 13 Terrain Rammed . | . . . Walls Destroyed . | . . . Machines Disabled . | . . . Actions | -11 -10 -10 --------- Run | Yrd Mat Sub Total 1565 | 68 1049 448 Wait 483 | . 467 16 Move 946 | 50 523 373 Hop . | . . . Pick Up 22 | 1 10 11 Fast Attach 9 | 7 2 . Attach 3 | . . 3 Detach 1 | . 1 . Swap 17 | . 11 6 Drop 7 | . 5 2 Fire 75 | 10 29 36 Melee . | . . . Ram 1 | . 1 . Kick . | . . . Crush . | . . . Escape Stasis . | . . . Rewire . | . . . Trap 1 | . . 1 Miscellaneous . | . . . Route ------- -11/Scrapyard -10/Materials (discovered 6 exits: [*Mat x3] / [*Min x2] / [*Sub]) -10/Subcaves (discovered 1 exit: [*Mat]) History --------- Turn | Location | Event 15 | -11/Scrapyard | Discovered new exit (range 16) 84 | -11/Scrapyard | Entered Materials 165 | -10/Materials | Discovered new exit (range 14) 309 | -10/Materials | Build established: Mutant 646 | -10/Materials | Discovered new exit (range 15) 707 | -10/Materials | Discovered new exit (range 16) 855 | -10/Materials | Discovered new exit (range 14) 929 | -10/Materials | Discovered new exit (range 12) 984 | -10/Materials | Central database locked down 1164 | -10/Materials | Discovered new exit (range 7) 1172 | -10/Materials | Entered Subcaves 1197 | -10/Subcaves | Ambushed by Subdweller buried in earth 1199 | -10/Subcaves | Ambushed by Subdweller buried in earth 1199 | -10/Subcaves | Ambushed by Subdweller buried in earth 1216 | -10/Subcaves | Core integrity fell below 50% 1277 | -10/Subcaves | A swath of the cavern ceiling suddenly collapsed 1340 | -10/Subcaves | Shifting Twisted Machinery released Sub. Laser 1360 | -10/Subcaves | Shifting Twisted Machinery released Sub. Power Source 1591 | -10/Subcaves | Discovered new exit (range 8) 1735 | -10/Subcaves | Core integrity fell below 20% 1755 | -10/Subcaves | Destroyed by OX-TSU(R) with Subdweller Shrapnel Launcher Last Messages --------------- Source. 01685_ Acquired 7 matter. 01687_ Acquired Sub. Machine Gun. 01689_ Subatomizers dissect the Sub. Power Source. 01702_ Acquired Piercing Trap. 01712_ Acquired Multitool. 01717_ Dropped Piercing Trap. 01718_ Installed Piercing Trap. 01725_ 6V-27X(R) triggered Piercing Trap. 01725_ Spikes shoot up from the floor. 01725_ 6V-27X(R) suffers critical hit (Impale). 01732_ 6V-27X(R) destroyed. 01741_ TD-L8D(R) affixes Scrap Shield Fragment to Scrap Shield. 01741_ TD-L8D(R) destroyed. 01746_ Acquired 20 matter. 01754_ OX-TSU(R) affixes Scrap Shield Fragment to Scrap Shield. Map ----- +----------------------------------------------------+ | ##?# ###????????????### # #?????? | | #?# ##??????????????# ##?????? | | #?## #??????????????## #??????? | | ##### #???????????????## # # ##??????? | | # # #????????????????##### ### ##???????? | | #??????#######??????## ## ##????????? | | ### ##???#### # # ####??## # ###?????????? | | ##### ##### #### ##???????????? | | ???# ## # ### #?######?????? | | ???## #### ## # ## #?????? | | ????## # # ## < #?????? | | ?????########## ## #????? | | ??????????????# ## #####????????? | | ??????????????##### # #### ##????????????? | | ??????????????????##### ##??## ##????????????? | | ??????????????????????####????#* #????????????? | | ?????????????????????????######%& #????????????? | | ??????????????????????#### =! ##???????????? | | ????????????? ??????# ######??????? | | ????????????# ?????# #####[ #??????? | | ????????????# ###??# ##??## #??????? | | ?????????????# #### ;##?# #??????? | | ?????????????# ?### ### ##?????? | | ?????????????# #;; #???? | | ????????????????? ;; ; ## ## #??? | | ???????????????????# ?#; @ ;##### ##? "" "?? | | ???????????????????# ; ## #??? """"""?? | | ???????????????????#O #;;%R ###???? "?????? | | ???????????????????# #;%& ### #?# ????? | | ???????????????????# &! #??? ???? | | ???????????????????# #??? ???? | | ???????????????????# # ####???????? | | ??????????????# ###?#??????????? | | ???????????? #??????????????? | | ??????????? ### #??????????????? | | ???????????? ##?### ####??????????????? | | ???????????#### #?????# ##?????????????????? | | ??????????????#### ###??????###??????????????????? | | ?????????????????##??????????????????????????????? | | ?????????????????????????????????????????????????? | | ?????????????????????????????????????????????????? | | ?????????????????????????????????????????????????? | | ?????????????????????????????????????????????????? | | ?????????????????????????????????????????????????? | | ?????????????????????????????????????????????????? | | ?????????????????????????????????????????????????? | | ?????????????????????????????????????????????????? | | ?????????????????????????????????????????????????? | | ?????????????????????????????????????????????????? | | ?????????????????????????????????????????????????? | +----------------------------------------------------+ Best States ------------- Heat Dissipation 25 Energy Generation 10 Energy Capacity 250 Matter Stores 300 Matter Capacity 300 Sight Range 16 Terrain Scan Density 10 Armor Coverage 80 Evasion (%) 42 Item Schematics ----------------- None Robot Schematics ------------------ None Fabricated ------------ Nothing Repaired ---------- Nothing Studied --------- None Alien Tech Used ----------------- None Achievements -------------- None Challenges ------------ None Game ------ Seed AblativeCommSabre Manual? 0 Play Time 00:14:52 Cumulative 544.7 hours Start 2026.02.12 @ 02:47:02 End 2026.02.12 @ 02:58:27 Sessions 1 Manual Loads 0 Difficulty Rogue Special Mode None Game No. 188 Rogue 188 Adventurer 0 Explorer 0 Win Type - Total 17 Types 8/0/5/1/0/0/0/1/0/2 Lore% 91 Gallery% 83 Achievement% 75 Wizard Run 0 Options --------- Layout 1 ASCII 0 Keyboard 0 Movement Mouse Keybinds 0 Fullscreen 2 Font 32/SmallcapsGlow Map View 50x35 Zoom Use 0% Tactical HUD 1 Map Filters NONE Filters NONE Steam 1 RUN: f9eb9565-3526-42a5-8e8d-d42f78dc318b